bitfinex/quotes_SOLUSD_20260119
["timestamp","ask_amount","ask_price","bid_price","bid_amount"]
[1768780913116,16.36,133.06,132.27,22.8055212]
[1768780913117,4.2286074,132.74,132.58,9.09229703]
[1768780913300,7.53388134,132.74,132.59,9.09229703]
[1768780913616,4.2286074,133.09,132.72,9.09229703]
[1768780913927,4.2286074,133.03,132.53,26.40911491]
[1768780914222,21.96,133.0,132.54,11.59010263]
[1768780914389,4.2286074,132.99,132.54,11.59010263]
[1768780914825,4.2286074,132.73,132.51,7.54625927]
[1768780915122,14.43638559,132.64,132.52,7.54597885]
[1768780915422,7.54034082,132.62,132.52,4.11369974]
[1768780915627,9.09229703,132.57,132.49,4.11369974]
[1768780915927,5.34408856,132.47,132.32,18.8927641]
[1768780916126,5.34408856,132.47,132.2,4.11369974]
[1768780916127,9.09229703,132.42,132.26,7.56086496]
[1768780916347,22.22958867,132.6,132.26,4.11369974]
[1768780916348,9.09229703,132.43,132.26,4.11369974]
[1768780916632,9.09229703,132.41,132.28,4.11369974]
[1768780916792,3.67762697,132.47,132.25,8.56111341]
[1768780916793,3.67762697,132.47,132.25,1.0]
[1768780917126,3.67762697,132.47,132.13,37.84026893]
[1768780917127,4.2286074,132.47,132.13,37.84026893]
[1768780917291,4.2286074,132.42,132.1,15.37369973]
[1768780917491,0.55413842,132.41,132.1,26.49507948]
[1768780917690,4.2286074,132.36,132.06,2.31083114]
[1768780917897,5.34408856,132.39,132.07,7.57161285]
[1768780917898,4.2286074,132.34,132.07,7.57161285]
[1768780918098,26.42307111,132.46,132.11,4.11369974]
[1768780918398,5.34408856,132.22,132.07,4.11369974]
[1768780918711,5.34408856,132.29,132.06,2.31083114]
[1768780918893,16.42,132.32,132.01,1e-08]
[1768780918894,5.34408856,132.32,132.01,1e-08]
[1768780919092,12.44861957,132.32,132.01,1e-08]
[1768780919339,5.34408856,132.28,132.0,2.6]
[1768780919500,5.34408856,132.28,131.91,4.11369974]
[1768780919501,27.30408856,132.28,131.91,4.11369974]
[1768780919833,21.96,132.15,131.78,62.17107779]
[1768780919995,31.05229703,132.14,131.78,24.22906818]
[1768780920205,4.2286074,132.19,131.78,24.22906818]
[1768780920514,7.5580077,132.31,132.01,26.51314293]
[1768780920717,4.2286074,132.43,132.04,5.34408856]
[1768780921014,3.70110333,132.42,132.04,13.67450477]
[1768780921218,24.04113626,132.49,132.09,5.34408856]
[1768780921520,24.04113626,132.49,132.19,5.34408856]
[1768780921818,7.54830917,132.48,132.16,46.58889484]
[1768780922028,24.04113626,132.49,132.2,5.34408856]
[1768780922231,28.26974366,132.49,132.16,44.23757467]
[1768780922456,9.09229703,132.48,132.06,64.36468271]
[1768780922716,5.34408856,132.29,132.06,20.26092301]
[1768780922915,36.36918812,132.48,132.05,19.54113626]
[1768780922916,5.34408856,132.25,132.05,19.54113626]
[1768780923220,9.09229703,132.22,132.06,26.50310464]
[1768780923517,26.46903123,132.23,132.06,7.57231561]
[1768780923721,9.09229703,132.07,131.91,4.11369974]
[1768780923895,9.09229703,132.16,131.94,4.11369974]
[1768780924091,64.28193299,132.23,132.07,4.11369974]
[1768780924319,9.09229703,132.21,132.07,4.11369974]
[1768780924520,26.46903123,132.23,132.02,4.11369974]
[1768780924695,9.09229703,132.32,132.07,9.09229703]
[1768780924897,4.2286074,132.32,132.08,4.11369974]
[1768780925093,22.74191714,132.32,132.19,4.11369974]
[1768780925316,7.55172934,132.42,132.23,9.09229703]
[1768780925525,26.3556927,132.42,132.28,9.09229703]
[1768780925843,7.55058894,132.44,132.23,37.87246168]
[1768780926001,24.04113626,132.45,132.19,64.30138435]
[1768780926312,4.2286074,132.43,132.19,26.47704061]
[1768780926498,4.2286074,132.43,132.27,9.09229703]
[1768780926817,74.70671928,132.62,132.32,4.11369974]
[1768780927117,7.54123457,132.61,132.5,5.34408856]
[1768780927299,9.09229703,132.7,132.51,7.54660025]
[1768780927497,26.37329514,132.71,132.54,5.34408856]
[1768780927498,7.53522718,132.71,132.54,5.34408856]
[1768780927712,4.16794327,132.72,132.51,64.32587406]
[1768780928027,23.85320434,132.8,132.71,9.09229703]
[1768780928204,9.09229703,133.06,132.8,5.34408856]
[1768780928403,24.49656923,133.0,132.87,9.09229703]
[1768780928607,3.71898897,133.05,132.82,3.71227746]
[1768780928608,3.71898897,133.05,132.94,5.34408856]
[1768780928915,4.2286074,133.17,133.01,22.64920161]
[1768780929218,7.50782564,133.2,133.09,7.51371252]
[1768780929409,26.44708365,133.23,133.09,7.51371252]
[1768780929410,26.44708365,133.23,133.19,9.09229703]
[1768780929595,30.67569105,133.23,133.15,9.09229703]
[1768780929793,3.71759156,133.28,133.21,9.09229703]
[1768780929993,4.22860741,133.29,133.09,63.86655645]
[1768780930193,1e-08,133.29,133.24,9.09229703]
[1768780930398,6.94435365,133.43,133.23,4.11369974]
[1768780930697,2.71196178,133.45,133.37,9.09229703]
[1768780930909,26.20348879,133.57,133.42,9.09229703]
[1768780931108,26.20348879,133.57,133.31,5.34408856]
[1768780931109,7.48671108,133.57,133.49,9.09229703]
[1768780931322,32.38170561,133.72,133.55,9.09229703]
[1768780931498,4.2286074,133.69,133.29,37.40166711]
[1768780931711,4.2286074,133.64,133.49,9.09229703]
[1768780931896,4.2286074,133.64,133.39,37.3030441]
[1768780932205,9.09229703,133.59,133.42,9.09229703]
[1768780932402,9.09229703,133.58,133.4,9.09229703]
[1768780932597,4.2286074,133.62,133.27,37.75831019]
[1768780932817,4.2286074,133.54,133.28,9.11075474]
[1768780933014,4.2286074,133.53,133.29,37.40166711]
[1768780933331,9.09229703,133.64,133.45,5.34408856]
[1768780933502,9.09229703,133.65,133.46,37.19671638]
[1768780933826,9.09229703,133.69,133.53,5.34408856]
[1768780933998,23.28940858,133.72,133.53,5.34408856]
[1768780934198,22.78940858,133.72,133.58,9.09229703]
[1768780934398,22.78940858,133.72,133.45,37.86201962]
[1768780934615,4.2286074,133.71,133.57,9.09229703]
[1768780934831,4.2286074,133.69,133.22,37.59822777]
[1768780935040,4.2286074,133.65,133.24,37.25541678]
[1768780935215,9.09229703,133.58,133.38,9.09229703]
[1768780935524,4.2286074,133.61,133.39,9.09229703]
[1768780935525,9.09229703,133.53,133.39,9.09229703]
[1768780935823,9.09229703,133.51,133.29,37.40166711]
[1768780935999,9.09229703,133.52,133.36,9.09229703]
[1768780936201,4.07662291,133.51,133.36,9.09229703]
[1768780936400,9.09229703,133.56,133.44,5.34408856]
[1768780936701,9.09229703,133.56,133.25,7.58158619]
[1768780936702,4.2286074,133.52,133.34,9.09229703]
[1768780936913,4.2286074,133.52,133.37,9.09229703]
[1768780937107,9.09229703,133.42,133.2,16.4]
[1768780937307,5.34408856,133.49,133.26,9.09229703]
[1768780937308,4.2286074,133.47,133.26,9.09229703]
[1768780937506,9.09229703,133.4,133.21,54.27509221]
[1768780937704,9.09229703,133.4,133.26,9.09229703]
[1768780938008,4.2286074,133.48,133.22,16.4]
[1768780938208,4.2286074,133.34,133.16,6.72967011]
[1768780938430,4.2286074,133.32,133.2,9.09229703]
[1768780938604,5.34408856,133.26,133.13,9.09229703]
[1768780938804,9.09229703,133.24,133.12,9.09229703]
[1768780939120,4.2286074,133.32,133.24,0.372]
[1768780939323,4.2286074,133.32,133.24,0.31195115]
[1768780939514,4.2286074,133.32,133.04,23.4773405]
[1768780939515,5.34408856,133.24,133.04,30.34529151]
[1768780939706,5.34408856,133.18,133.05,30.0]
[1768780940029,5.34408856,133.17,133.05,16.54055856]
[1768780940326,5.34408856,133.15,132.96,4.11369974]
[1768780940516,5.34408856,133.11,132.96,4.11369974]
[1768780940823,9.57269596,133.15,132.96,4.11369974]
[1768780941041,4.2286074,133.01,132.86,0.4466932]
[1768780941245,4.2286074,132.93,132.86,1e-08]
[1768780941409,4.18632132,132.83,132.71,4.76257252]
[1768780941607,9.09229703,132.74,132.71,4.72028644]
[1768780941833,4.1444581,132.68,132.34,37.27683029]
[1768780942032,9.09229703,132.6,132.47,7.16013838]
[1768780942329,9.09229703,132.6,132.38,33.3035975]
[1768780942330,9.09229703,132.54,132.42,6.9451322]
[1768780942636,9.09229703,132.44,132.38,23.85320434]
[1768780942827,5.34408856,132.5,132.29,0.4466932]
[1768780942828,5.34408856,132.5,132.32,9.45039316]
[1768780943032,9.09229703,132.48,132.29,4.81309362]
[1768780943223,9.09229703,132.37,132.29,4.81309362]
[1768780943425,9.09229703,132.4,132.3,4.36640042]
[1768780943609,7.54887899,132.47,132.29,1e-08]
[1768780943610,9.09229703,132.31,132.29,1e-08]
[1768780943814,9.09229703,132.31,132.13,0.1]
[1768780944134,9.09229703,132.21,132.13,0.1]
[1768780944315,9.09229703,132.23,132.1,6.74277421]
[1768780944512,14.43638559,132.32,132.05,24.04113626]
[1768780944513,4.38391357,132.21,132.05,24.04113626]
[1768780944712,4.38391357,132.05,131.69,37.31368294]
[1768780944941,4.38391357,131.89,131.68,37.7173637]
[1768780945119,4.38391357,131.89,131.63,22.75571737]
[1768780945438,4.38391357,131.8,131.53,4.36640042]
[1768780945655,4.38391357,131.72,131.53,22.76780632]
[1768780945811,4.38391357,131.69,131.54,6.05313972]
[1768780946009,4.38391357,131.69,131.47,24.4170001]
[1768780946010,4.29667368,131.6,131.47,24.37316096]
[1768780946207,38.722339,131.83,131.47,20.03308654]
[1768780946437,36.36918812,131.84,131.47,20.03308654]
[1768780946438,5.34408856,131.58,131.47,20.03308654]
[1768780946621,9.09229703,131.52,131.47,2e-08]
[1768780946820,9.09229703,131.55,131.44,4.36640042]
[1768780947021,9.09229703,131.5,131.38,4.36640042]
[1768780947216,9.09229703,131.48,131.32,4.36640042]
[1768780947417,7.60340632,131.52,131.43,1e-08]
[1768780947615,7.60340632,131.52,131.2,9.09229703]
[1768780947616,9.09229703,131.44,131.25,47.35825377]
[1768780947815,36.36918812,131.68,131.43,7.60838381]
[1768780947816,64.64929602,131.67,131.43,7.60838381]
[1768780948153,38.79671744,131.66,131.39,19.02611235]
[1768780948441,26.58160552,131.67,131.44,4.36640042]
[1768780948613,9.09229703,131.59,131.29,37.74509999]
[1768780948815,4.32273642,131.6,131.25,38.40727509]
[1768780949028,4.32273642,131.49,131.29,9.09229703]
[1768780949212,4.32273642,131.49,131.2,47.73632925]
[1768780949410,5.34408856,131.54,131.2,47.73632925]
[1768780949411,4.32273642,131.4,131.2,38.64403222]
[1768780949620,5.34408856,131.35,131.2,7.62192034]
[1768780949913,9.09229703,131.32,131.16,15.73225523]
[1768780950146,9.09229703,131.26,131.12,9.09229703]
[1768780950436,4.32273642,131.35,131.06,0.1]
[1768780950437,7.4,131.34,131.06,0.1]
[1768780950622,7.4,131.34,131.2,7.62152984]
[1768780950820,9.09229703,131.34,131.21,4.36640042]
[1768780951013,9.09229703,131.35,131.22,4.36640042]
[1768780951229,102.67721325,131.48,131.29,9.09229703]
[1768780951537,33.69722905,131.55,131.33,5.34408856]
[1768780951740,24.60493202,131.55,131.36,9.09229703]
[1768780951919,20.7270299,131.55,131.37,38.53355628]
[1768780952318,4.38391357,131.61,131.31,26.65448175]
[1768780952541,3.88391357,131.56,131.31,26.65448175]
[1768780952839,3.88391357,131.56,131.36,9.09229703]
[1768780953040,3.88391357,131.56,131.31,26.65448175]
[1768780953041,64.57985106,131.62,131.42,4.36640042]
[1768780953245,38.97163028,131.7,131.49,4.36640042]
[1768780953449,4.38391357,131.66,131.32,37.54431052]
[1768780953660,64.54552356,131.69,131.49,7.60499427]
[1768780953815,38.97876986,131.87,131.49,7.60499427]
[1768780953816,4.38391357,131.76,131.53,5.34408856]
[1768780954121,4.38391357,131.91,131.7,9.09229703]
[1768780954322,6.9687582,131.89,131.67,5.34408856]
[1768780954521,4.38391357,131.96,131.68,52.16979873]
[1768780954740,26.52519893,131.95,131.72,5.34408856]
[1768780954931,8.50302586,131.94,131.69,37.32832361]
[1768780955244,4.23257513,132.08,131.69,37.32832361]
[1768780955443,3.73257513,132.08,131.88,0.5]
[1768780955645,44.45922547,132.15,131.9,0.5]
[1768780955838,37.96033932,132.14,131.9,0.5]
[1768780956016,37.50339551,132.12,131.84,9.09229703]
[1768780956217,64.44739849,132.14,131.81,37.79671218]
[1768780956519,9.09229703,132.05,131.91,18.95194408]
[1768780956719,9.09229703,132.01,131.8,0.5]
[1768780957056,37.89930762,132.13,131.8,0.5]
[1768780957252,9.43957614,131.98,131.81,9.43957614]
[1768780957423,13.67215127,131.92,131.82,7.58610226]
[1768780957617,4.23257513,131.88,131.69,0.5]
[1768780957819,4.23257513,131.88,131.63,16.5]
[1768780957820,4.23257513,131.88,131.81,7.58610572]
[1768780958020,4.23257513,131.94,131.81,7.58610572]
[1768780958223,11.80374411,132.08,131.88,9.43957614]
[1768780958455,4.23257513,132.08,131.93,5.34408856]
[1768780958746,4.23257513,132.05,131.84,9.43957614]
[1768780958950,4.23257513,132.05,131.81,64.48618916]
[1768780959129,4.23257513,132.03,131.81,64.48618916]
[1768780959329,7.4,132.07,131.68,9.43957614]
[1768780959330,4.23257513,131.94,131.76,26.56344868]
[1768780959530,4.23257513,131.91,131.68,37.96864624]
[1768780959927,9.43957614,131.92,131.79,9.43957614]
[1768780960196,43.13534643,132.03,131.73,4.22164163]
[1768780960350,37.79125787,132.03,131.7,4.22164163]
[1768780960535,5.34408856,131.96,131.76,64.51123252]
[1768780960736,5.34408856,131.96,131.8,9.43957614]
[1768780960933,9.43957614,131.93,131.82,9.43957614]
[1768780961147,7.57288905,132.05,131.79,4.22164163]
[1768780961325,7.57288905,132.05,131.89,9.43957614]
[1768780961532,7.56773119,132.14,131.97,9.43957614]
[1768780961732,37.89930762,132.13,131.85,64.46719756]
[1768780961936,26.48705917,132.14,131.85,73.40492874]
[1768780961937,4.23257513,131.95,131.85,73.40492874]
[1768780962137,37.67729807,132.02,131.85,73.40492874]
[1768780962138,13.67215127,131.92,131.85,26.54531664]
[1768780962459,9.43957614,132.0,131.72,4.22164163]
[1768780962460,5.34408856,131.95,131.72,4.22164163]
[1768780962649,4.19024937,131.94,131.72,4.22164163]
[1768780962844,9.43957614,131.87,131.74,9.43957614]
[1768780963045,4.19024937,131.89,131.67,4.22164163]
[1768780963256,4.19024937,132.01,131.82,4.22164163]
[1768780963446,4.19024937,132.12,131.89,9.43957614]
[1768780963651,9.43957614,131.97,131.83,102.40461198]
[1768780963839,9.43957614,131.9,131.78,9.65056451]
[1768780964045,5.34408856,131.91,131.71,4.22164163]
[1768780964248,9.43957614,132.0,131.76,4.22164163]
[1768780964544,4.17942521,131.91,131.61,37.42313264]
[1768780964735,5.34408856,131.94,131.68,9.43957614]
[1768780964931,4.48583346,131.93,131.82,26.5511926]
[1768780965237,4.48583346,131.92,131.63,9.49323328]
[1768780965447,5.34408856,131.85,131.63,8.71095075]
[1768780965731,37.90306004,131.92,131.47,9.43957614]
[1768780965732,9.43957614,131.72,131.48,37.02040304]
[1768780965949,5.34408856,131.69,131.5,21.96]
[1768780966157,9.43957614,131.58,131.47,9.43957614]
[1768780966355,5.34408856,131.65,131.42,26.63138109]
[1768780966533,5.34408856,131.65,131.2,9.43957614]
[1768780966534,5.34408856,131.49,131.35,19.03305205]
[1768780966733,4.17942522,131.39,131.02,38.69551923]
[1768780966934,9.43957614,131.2,131.08,7.62892889]
[1768780967233,4.17942522,131.26,130.9,54.66036507]
[1768780967234,9.43957614,131.13,130.91,38.192109]
[1768780967436,9.43957614,131.06,130.8,59.80460245]
[1768780967698,4.17942522,131.09,130.81,22.87718763]
[1768780967836,9.43957614,130.96,130.88,7.64020641]
[1768780968154,9.43957614,130.9,130.8,1e-08]
[1768780968366,9.43957614,130.89,130.8,1e-08]
[1768780968658,4.13763096,130.8,130.58,3.50246096]
[1768780968861,4.13763096,130.68,130.6,0.05820574]
[1768780969237,9.43957614,130.61,130.55,20.83710259]
[1768780969447,7.48760807,130.55,130.46,65.15140128]
[1768780969631,9.43957614,130.72,130.46,7.66518473]
[1768780969842,9.43957614,130.49,130.24,25.16266546]
[1768780970157,9.43957614,130.56,130.29,9.43957614]
[1768780970158,13.61900136,130.47,130.29,9.43957614]
[1768780970466,23.02228599,130.49,130.12,4.22164163]
[1768780970642,10.34859136,130.52,130.16,4.22164163]
[1768780970841,10.78192469,130.51,130.16,4.22164163]
[1768780971043,4.17942522,130.42,130.13,38.42132581]
[1768780971235,4.17942522,130.4,130.01,39.40762079]
[1768780971434,4.17942522,130.38,130.02,26.41893554]
[1768780971634,103.53554719,130.39,130.05,9.43957614]
[1768780971635,4.17942522,130.28,130.05,9.43957614]
[1768780971948,4.17942522,130.28,130.02,26.41893554]
[1768780972160,2.01837258,130.33,130.08,9.43957614]
[1768780972462,22.94899742,130.56,130.29,9.43957614]
[1768780972645,25.16266546,130.63,130.25,38.66532351]
[1768780972967,25.16266546,130.63,130.31,38.79910275]
[1768780972968,21.49099776,130.63,130.31,38.79910275]
[1768780973133,30.97097347,130.93,130.6,38.8176774]
[1768780973337,9.43957614,130.89,130.52,64.85014207]
[1768780973664,4.23913204,130.88,130.57,38.10856054]
[1768780973839,7.63825236,130.92,130.58,38.80164967]
[1768780974040,4.23913204,130.91,130.53,38.95602259]
[1768780974235,4.23913204,130.91,130.57,38.23325313]
[1768780974560,38.21674134,130.87,130.52,57.30630002]
[1768780974736,4.23913204,130.8,130.52,26.81581366]
[1768780974937,4.19674071,130.69,130.34,30.0]
[1768780975138,38.91486197,130.71,130.35,4.43768999]
[1768780975342,9.43957614,130.61,130.43,4.43768999]
[1768780975555,7.64525993,130.8,130.51,9.43957614]
[1768780975856,37.75830456,131.04,130.4,9.43957614]
[1768780975857,7.63766898,130.93,130.66,4.43768999]
[1768780976060,15.65155557,130.94,130.85,9.43957614]
[1768780976250,15.65155557,130.94,130.72,9.43957614]
[1768780976251,9.10315514,130.9,130.73,38.73738498]
[1768780976450,4.23913204,130.99,130.73,38.62407206]
[1768780976657,4.23913204,130.97,130.73,38.62407206]
[1768780976852,4.23913204,130.97,130.74,21.34825824]
[1768780977158,4.23913204,130.86,130.44,38.92902601]
[1768780977358,4.23913204,130.84,130.49,38.24679091]
[1768780977558,4.23913204,130.76,130.49,9.25981672]
[1768780977757,6.35226818,130.98,130.49,9.25981672]
[1768780977758,4.23913204,130.9,130.56,47.64963067]
[1768780977959,4.23913204,130.96,130.53,38.40420951]
[1768780978165,0.4466932,131.01,130.73,38.62407206]
[1768780978364,0.4466932,131.01,130.74,49.50849527]
[1768780978561,4.68582524,131.01,130.9,9.43957614]
[1768780978859,4.68582524,131.01,130.74,10.82032227]
[1768780978860,4.23913204,130.99,130.74,10.82032227]
[1768780979060,0.4466932,131.01,130.73,38.62407206]
[1768780979364,4.23913204,131.25,130.99,64.89044963]
[1768780979555,38.19745285,131.42,130.99,103.04427114]
[1768780979755,9.43957614,131.25,131.06,9.43957614]
[1768780979961,7.61730652,131.28,131.03,4.23913204]
[1768780980139,19.03465657,131.34,131.12,4.23913204]
[1768780980345,19.03465657,131.34,131.04,26.05957614]
[1768780980346,6.3636892,131.36,131.25,9.43957614]
[1768780980545,9.43957614,131.35,131.04,9.43957614]
[1768780980761,16.66,131.46,131.22,9.43957614]
[1768780980964,9.43957614,131.27,131.06,3.79243884]
[1768780981165,9.43957614,131.21,131.0,3.79243884]
[1768780981463,9.43957614,131.36,130.95,22.86323972]
[1768780981464,26.68699961,131.15,130.95,22.86323972]
[1768780981665,4.19674071,131.02,130.95,12.85241927]
[1768780981868,4.11322556,130.95,130.8,7.64497293]
[1768780982065,9.43957614,130.81,130.61,6.26864343]
[1768780982369,4.23913204,130.85,130.59,19.14388544]
[1768780982694,13.67870818,130.88,130.47,38.39140397]
[1768780982849,4.23913204,130.81,130.47,8.44845561]
[1768780983044,4.23913204,130.86,130.48,38.90458596]
[1768780983246,4.23913204,130.76,130.44,38.92902601]
[1768780983541,9.43957614,130.88,130.44,38.92902601]
[1768780983542,4.23913204,130.65,130.44,22.33226004]
[1768780983863,2.49962713,130.7,130.44,6.30275093]
[1768780984168,9.43957614,130.47,130.26,9.43957614]
[1768780984466,9.43957614,130.4,130.19,38.79961617]
[1768780984664,9.43957614,130.34,130.2,26.88172042]
[1768780984966,9.43957614,130.28,130.08,4.43768999]
[1768780985263,9.43957614,130.28,130.0,361.64]
[1768780985264,16.66,130.48,130.07,4.43768999]
[1768780985465,16.66,130.48,130.15,4.43768999]
[1768780985466,9.43957614,130.4,130.15,4.43768999]
[1768780985764,9.43957614,130.33,130.14,9.43957614]
[1768780985963,9.43957614,130.36,130.09,38.43286559]
[1768780986165,7.66459722,130.47,130.32,9.43957614]
[1768780986357,7.66342248,130.49,130.24,38.22252404]
[1768780986557,7.66342248,130.49,130.35,9.43957614]
[1768780986755,4.23913204,130.58,130.12,38.55224426]
[1768780986949,4.23913204,130.56,130.14,38.43502366]
[1768780987144,4.23913204,130.56,130.13,45.63930223]
[1768780987348,4.23913204,130.54,130.15,65.30925854]
[1768780987546,5.45107852,130.53,130.16,4.43768999]
[1768780987851,5.45107852,130.53,130.15,26.89204763]
[1768780987852,4.80216052,130.52,130.15,19.20860545]
[1768780988053,0.56302848,130.54,130.19,38.62065967]
[1768780988267,4.23913204,130.51,130.16,38.51110881]
[1768780988448,65.10915357,130.55,130.25,38.94820738]
[1768780988643,4.23913204,130.54,130.24,26.07957614]
[1768780988964,7.65990042,130.55,130.29,38.62658775]
[1768780989166,26.80965147,130.55,130.27,38.11583748]
[1768780989367,4.23913204,130.53,130.35,19.17894344]
[1768780989668,4.23913204,130.44,130.3,7.67409094]
[1768780989874,26.81170521,130.54,129.95,7.51001593]
[1768780989875,4.23913204,130.41,130.22,9.43957614]
[1768780990055,4.23913204,130.34,130.17,7.68201395]
[1768780990256,26.81170521,130.54,130.13,19.21077277]
[1768780990257,4.23913204,130.3,130.13,19.21077277]
[1768780990466,9.43957614,130.21,130.1,19.21537645]
[1768780990677,13.67870818,130.18,130.01,0.4466932]
[1768780990874,4.23913204,130.14,130.01,0.4466932]
[1768780991081,9.43957614,130.22,130.0,361.64]
[1768780991285,22.9322486,130.25,130.0,325.0697617]
[1768780991572,9.43957614,130.24,130.07,9.43957614]
[1768780991877,4.23913204,130.47,130.19,9.43957614]
[1768780992174,38.19103051,130.56,130.03,16.66]
[1768780992175,4.23913204,130.42,130.04,38.84612368]
[1768780992373,9.43957614,130.56,130.31,9.43957614]
[1768780992687,9.43957614,130.56,130.08,9.43957614]
[1768780992688,65.07924354,130.61,130.4,9.43957614]
[1768780993080,65.07924354,130.61,130.32,4.43768999]
[1768780993375,65.07924354,130.61,130.2,16.66]
[1768780993376,26.79733557,130.61,130.42,4.43768999]
[1768780993549,65.05147003,130.67,130.44,4.43768999]
[1768780993752,0.4466932,130.72,130.43,46.07460577]
[1768780993753,0.4466932,130.72,130.57,4.43768999]
[1768780994176,4.23913204,130.79,130.56,9.43957614]
[1768780994395,24.97473354,130.8,130.57,38.98040065]
[1768780994562,24.97473354,130.8,130.76,9.43957614]
[1768780994767,26.72775868,130.95,130.72,48.39621811]
[1768780994995,7.63358778,131.0,130.87,9.43957614]
[1768780995199,0.4466932,131.01,130.93,9.43957614]
[1768780995505,0.4466932,131.01,130.89,38.79146565]
[1768780995668,24.79286394,131.13,131.08,9.43957614]
[1768780996099,4.23913204,131.24,130.99,38.2749281]
[1768780996271,26.66057282,131.28,131.17,9.43957614]
[1768780996469,6.23464255,131.31,131.09,43.98653421]
[1768780996783,4.23913204,131.43,131.2,9.43957614]
[1768780996981,4.23913204,131.43,131.36,9.43957614]
[1768780997195,4.23913204,131.5,131.21,38.38636884]
[1768780997413,38.55794817,131.68,131.37,4.23913204]
[1768780997568,9.43957614,131.64,131.5,3.70015814]
[1768780997763,9.43957614,131.6,131.38,64.6978231]
[1768780997973,18.99322318,131.63,131.41,5.34408856]
[1768780998172,9.43957614,131.84,131.38,64.6978231]
[1768780998173,7.59070897,131.74,131.57,9.43957614]
[1768780998470,7.59070897,131.74,131.38,64.6978231]
[1768780998471,38.60179789,131.73,131.4,4.23913204]
[1768780998678,26.05775011,131.75,131.5,5.34408856]
[1768780998878,9.43957614,131.69,131.51,4.23913204]
[1768780999080,17.65135053,131.75,131.6,9.43957614]
[1768780999273,17.65135053,131.75,131.66,9.43957614]
[1768780999477,4.23913204,131.81,131.67,9.43957614]
[1768780999769,4.23913204,131.81,131.6,41.79181906]
[1768780999981,4.23913204,131.81,131.71,9.43957614]
[1768781000297,0.4466932,131.86,131.75,9.43957614]
[1768781000593,17.74796269,131.92,131.75,3.79243884]
[1768781000897,4.23913204,132.05,131.87,9.43957614]
[1768781001201,4.23913204,131.98,131.85,9.43957614]
[1768781001372,4.23913204,132.04,131.82,5.34408856]
[1768781001583,4.23913204,132.04,131.88,9.43957614]
[1768781001805,18.42201975,132.07,131.91,9.43957614]
[1768781002107,18.42201975,132.07,131.92,37.24452804]
[1768781002315,4.23913204,132.22,132.03,9.43957614]
[1768781002509,41.99873794,132.28,132.1,9.43957614]
[1768781002723,41.93921139,132.35,132.07,5.34408856]
[1768781002895,9.43957614,132.23,132.0,9.43957614]
[1768781003098,4.48939412,132.24,132.03,42.96321312]
[1768781003415,9.43957614,132.36,132.17,4.1511384]
[1768781003613,30.92443943,132.4,132.22,4.1511384]
[1768781003791,26.43504531,132.4,132.26,4.1511384]
[1768781003992,6.60700835,132.43,132.28,9.43957614]
[1768781004298,6.31843094,132.53,132.28,42.87371338]
[1768781004488,7.5447105,132.55,132.44,9.43957614]
[1768781004813,18.85222145,132.62,132.43,5.34408856]
[1768781004992,7.53977229,132.63,132.53,9.43957614]
[1768781005199,4.48939412,132.7,132.48,46.48464694]
[1768781005401,4.48939412,132.69,132.48,9.43957614]
[1768781005595,4.48939412,132.69,132.39,16.58]
[1768781005596,23.32197039,132.75,132.49,64.15578534]
[1768781005910,7.98140006,132.72,132.64,9.43957614]
[1768781006115,7.98140006,132.72,132.68,9.43957614]
[1768781006116,45.59248722,132.72,132.68,9.43957614]
[1768781006414,0.4466932,132.72,132.67,9.43957614]
[1768781006605,0.4466932,132.72,132.49,64.15578534]
[1768781006806,4.48939412,132.71,132.48,9.43957614]
[1768781007111,9.43957614,132.64,132.48,26.41857113]
[1768781007419,9.43957614,132.55,132.47,7.54855359]
[1768781007602,5.34408856,132.51,132.39,9.43957614]
[1768781007804,45.14579402,132.52,132.42,7.55172934]
[1768781008018,114.1161621,132.64,132.46,4.1511384]
[1768781008192,76.99480641,132.64,132.46,4.1511384]
[1768781008509,9.43957614,132.63,132.51,9.43957614]
[1768781008715,4.48939412,132.63,132.5,9.43957614]
[1768781008928,4.48939412,132.63,132.41,37.4690421]
[1768781009098,4.48939412,132.63,132.39,9.2690461]
[1768781009298,4.48939412,132.56,132.39,9.2690461]
[1768781009491,4.48939412,132.56,132.47,9.43957614]
[1768781009799,4.48939412,132.6,132.48,9.43957614]
[1768781009999,23.33521052,132.66,132.5,9.43957614]
[1768781010195,7.5373951,132.68,132.52,9.43957614]
[1768781010500,0.4466932,132.72,132.63,9.43957614]
[1768781010699,0.4466932,132.72,132.61,5.34408856]
[1768781010700,1e-08,132.72,132.61,5.34408856]
[1768781010896,41.72534508,132.85,132.71,9.43957614]
[1768781011108,45.27226228,132.87,132.77,9.43957614]
[1768781011320,69.45506772,132.9,132.69,37.98524047]
[1768781011505,4.48939412,132.97,132.84,7.97647406]
[1768781011706,4.48939412,132.97,132.71,64.04943107]
[1768781011707,4.48939412,132.97,132.88,9.43957614]
[1768781012015,4.48939412,132.96,132.8,9.43957614]
[1768781012198,4.48939412,132.91,132.71,64.04943107]
[1768781012400,9.43957614,132.86,132.71,64.04943107]
[1768781012595,3.76805525,132.89,132.71,7.53522718]
[1768781012908,3.76805525,132.89,132.83,9.43957614]